bitfinex-derivatives/quotes_ETHF0:USTF0_20241004
["timestamp","ask_amount","ask_price","bid_price","bid_amount"]
[1728062410841,0.41187,2428.1,2427.9,1.22379]
[1728062411249,0.41188,2428.0,2427.9,1.22379]
[1728062411442,0.41187,2428.1,2428.0,0.41188]
[1728062411747,0.4069,2428.2,2428.0,3.62187]
[1728062412140,0.81876,2428.2,2428.0,3.62187]
[1728062412341,0.3872,2428.5,2428.1,4.1184]
[1728062412641,0.3872,2428.5,2427.9,0.8119]
[1728062412642,0.41188,2428.0,2427.9,0.8119]
[1728062412946,0.41188,2428.0,2427.9,5.34219]
[1728062413140,0.41188,2428.0,2427.9,1.77493593]
[1728062413346,0.41188,2428.0,2427.9,1.22379]
[1728062413542,0.41187,2428.1,2428.0,0.41188]
[1728062413850,0.41187,2428.1,2427.9,1.22378]
[1728062414344,0.41187,2428.1,2427.9,0.8119]
[1728062414548,0.41187,2428.1,2428.0,0.41188]
[1728062415245,0.41185,2428.2,2428.1,0.41186]
[1728062415444,0.4093,2428.4,2428.0,3.21]
[1728062415639,0.41186,2428.2,2428.0,3.62187]
[1728062415844,0.41186,2428.1,2428.0,3.62187]
[1728062416249,0.41186,2428.1,2428.0,7.74027]
[1728062416647,0.41186,2428.2,2428.0,7.3284]
[1728062416846,0.41186,2428.2,2428.1,3.61966]
[1728062417150,0.41186,2428.2,2428.1,7.73806]
[1728062418149,0.4093,2428.4,2428.1,16.5362]
[1728062418339,0.4118,2428.5,2428.4,0.41181]
[1728062418544,0.41181,2428.5,2428.4,0.41181]
[1728062418750,0.41181,2428.5,2428.4,5.35301]
[1728062418948,1.43372,2428.7,2428.4,4.9412]
[1728062419253,0.41179,2428.6,2428.5,0.41179]
[1728062419547,0.4043,2428.7,2428.5,3.62179]
[1728062419750,0.4043,2428.7,2428.5,3.21]
[1728062420144,0.41178,2428.6,2428.5,7.3276]
[1728062420453,1.43366,2428.8,2428.5,3.62178]
[1728062420651,0.41178,2428.6,2428.5,3.62178]
[1728062420956,1.43366,2428.8,2428.5,3.62178]
[1728062421143,0.41178,2428.6,2428.5,3.21]
[1728062421349,0.41178,2428.6,2428.5,3.62179]
[1728062421647,0.41178,2428.6,2428.5,7.3276]
[1728062421845,0.41178,2428.6,2428.5,7.73939]
[1728062422040,0.41177,2428.7,2428.5,7.73939]
[1728062422248,0.41177,2428.7,2428.5,3.62179]
[1728062422550,0.41177,2428.7,2428.6,0.82458]
[1728062422851,0.41177,2428.7,2428.6,4.5304]
[1728062423150,4.64368,2428.8,2428.4,0.4145]
[1728062423364,0.41179,2428.5,2428.4,0.4145]
[1728062424244,0.41178,2428.6,2428.5,0.41179]
[1728062424449,0.41178,2428.6,2428.4,7.7421]
[1728062424450,1.43368,2428.8,2428.4,6.8323]
[1728062424649,0.41179,2428.6,2428.4,7.2441]
[1728062424952,0.41179,2428.6,2428.5,0.41179]
[1728062425455,0.41179,2428.6,2428.4,3.6245]
[1728062425753,0.41179,2428.6,2428.5,0.41179]
[1728062425955,0.41179,2428.5,2428.4,0.4145]
[1728062426349,0.41179,2428.5,2428.4,4.94391]
[1728062426843,0.41179,2428.5,2428.4,4.5321]
[1728062427852,0.41179,2428.5,2428.4,0.4145]
[1728062428044,0.41179,2428.5,2428.4,1.8945]
[1728062428251,1.43368,2428.8,2428.5,0.41179]
[1728062428252,0.41179,2428.6,2428.5,0.41179]
[1728062428456,0.41179,2428.6,2428.5,1.89179]
[1728062428658,0.41179,2428.6,2428.5,6.00939]
[1728062429052,1.43368,2428.8,2428.5,6.00939]
[1728062429255,0.41177,2428.7,2428.5,1.89179]
[1728062429457,0.41178,2428.6,2428.5,1.48]
[1728062429655,0.41178,2428.6,2428.5,1.89179]
[1728062429957,0.41178,2428.6,2428.5,6.00939]
[1728062431046,0.41178,2428.6,2428.5,5.5976]
[1728062431246,0.41178,2428.6,2428.5,1.48]
[1728062432955,0.41178,2428.6,2428.5,6.00939]
[1728062433150,0.41178,2428.6,2428.5,5.5976]
[1728062433358,0.41178,2428.6,2428.5,1.48]
[1728062434162,0.41178,2428.6,2428.5,5.5976]
[1728062434349,0.41178,2428.6,2428.5,1.48]
[1728062436056,0.41178,2428.6,2428.5,1.89179]
[1728062436356,0.41178,2428.6,2428.5,1.48]
[1728062438064,0.41178,2428.6,2428.5,1.89179]
[1728062438265,0.41178,2428.6,2428.5,1.48]
[1728062439162,0.80698,2428.6,2428.5,1.48]
[1728062439752,0.4043,2428.8,2428.5,5.5976]
[1728062439958,0.4043,2428.8,2428.7,1.89176]
[1728062440163,0.81604,2428.8,2428.7,1.89176]
[1728062440363,0.4043,2428.8,2428.7,1.89176]
[1728062441060,0.4043,2428.8,2428.7,1.48]
[1728062441256,0.81604,2428.8,2428.7,1.89176]
[1728062442069,0.81604,2428.8,2428.7,1.48]
[1728062442267,0.81604,2428.8,2428.7,1.89176]
[1728062444467,0.4043,2428.8,2428.7,1.89176]
[1728062444767,0.4043,2428.8,2428.7,6.00936]
[1728062444957,0.4043,2428.8,2428.7,6.40396]
[1728062448976,0.41173,2428.9,2428.8,0.41174]
[1728062449172,0.41173,2428.9,2428.8,3.2078]
[1728062449366,1.44104,2428.9,2428.7,1.48]
[1728062449571,0.41174,2428.8,2428.7,1.48]
[1728062449969,0.41174,2428.8,2428.7,5.5976]
[1728062450366,0.41174,2428.8,2428.7,6.00936]
[1728062450569,0.41174,2428.8,2428.7,1.48]
[1728062451170,0.41174,2428.8,2428.7,1.89176]
[1728062451970,0.41174,2428.8,2428.7,1.48]
[1728062453570,0.4092,2429.0,2428.7,1.48]
[1728062453767,0.41173,2428.9,2428.8,1.89174]
[1728062454168,0.41173,2428.9,2428.8,1.48]
[1728062455177,0.41173,2428.9,2428.8,2.30264]
[1728062456278,0.41173,2428.9,2428.8,1.8909]
[1728062458275,0.41173,2428.9,2428.8,2.30264]
[1728062459077,0.41173,2428.9,2428.8,1.8909]
[1728062459275,0.41173,2428.9,2428.8,2.30264]
[1728062459473,0.41173,2428.9,2428.8,1.8909]
[1728062460082,0.41173,2428.9,2428.8,2.30264]
[1728062460575,0.41173,2428.9,2428.8,0.4109]
[1728062460885,2.54653378,2428.9,2428.8,0.55154636]
[1728062461090,4.52852,2428.9,2428.8,0.55154636]
[1728062461379,0.41178,2428.6,2428.5,3.2078]
[1728062461678,0.41178,2428.6,2428.5,3.75952124]
[1728062461988,5.35238,2428.6,2428.5,3.75952124]
[1728062462177,4.9406,2428.6,2428.2,1.07929528]
[1728062462488,0.41183,2428.3,2428.2,3.2078]
[1728062462678,0.41183,2428.3,2428.2,1.43495448]
[1728062462981,0.41183,2428.3,2428.2,0.55190557]
[1728062462982,4.53023,2428.3,2428.2,0.55190557]
[1728062463184,12.628,2428.3,2427.9,1.07929528]
[1728062463382,0.41186,2428.1,2428.0,1.43515593]
[1728062463681,0.41186,2428.1,2428.0,0.55198305]
[1728062463879,4.53026,2428.1,2428.0,0.55198305]
[1728062464080,13.73806,2428.1,2428.0,0.55198305]
[1728062464280,13.3262,2428.1,2427.7,1.07929528]
[1728062464578,0.41191,2427.8,2427.7,1.07929528]
[1728062464885,5.14813,2428.0,2427.7,0.87635426]
[1728062465187,0.41193,2427.7,2427.6,1.07929528]
[1728062465578,0.41195,2427.6,2427.5,1.07929528]
[1728062465785,0.8025,2427.7,2427.4,1.87726528]
[1728062466080,0.41196,2427.5,2427.4,1.87726528]
[1728062466285,0.41196,2427.5,2427.4,2.75280669]
[1728062466774,0.41196,2427.5,2427.4,1.87726528]
[1728062467286,0.41196,2427.5,2427.4,0.79797]
[1728062467780,0.41196,2427.5,2427.4,0.79798]
[1728062467980,0.41196,2427.5,2427.4,0.386]
[1728062468884,0.41196,2427.5,2427.4,0.79798]
[1728062469283,0.41196,2427.5,2427.4,0.386]
[1728062469683,0.4068,2427.7,2427.4,0.386]
[1728062469985,0.41193,2427.7,2427.6,3.21]
[1728062470883,0.41193,2427.7,2427.4,1.1718]
[1728062470884,0.41196,2427.5,2427.4,3.596]
[1728062472980,0.41196,2427.5,2427.4,3.21]
[1728062473176,0.41198,2427.4,2427.3,3.2078]
[1728062473381,0.79928,2427.4,2427.3,3.2078]
[1728062476689,0.41201,2427.2,2427.1,0.4152]
[1728062476887,0.41201,2427.2,2426.8,6.4178]
[1728062476888,0.41206,2426.9,2426.8,6.4178]
[1728062477087,1.03012,2427.1,2426.8,7.23727]
[1728062477392,0.41206,2426.9,2426.8,7.23727]
[1728062477587,0.41206,2426.9,2426.8,3.6152]
[1728062477889,0.41206,2426.9,2426.8,7.23727]
[1728062478708,0.41206,2426.9,2426.8,6.8252]
[1728062479424,0.41211,2426.6,2426.5,6.8413]
[1728062479712,0.41211,2426.6,2426.5,6.6966]
[1728062480323,0.41211,2426.6,2426.5,3.2078]
[1728062480528,0.41217,2426.3,2426.2,3.2078]
[1728062480824,0.41218,2426.2,2426.1,0.4065]
[1728062481412,0.41216,2426.4,2426.1,3.6165]
[1728062481610,0.41216,2426.4,2426.3,3.21]
[1728062481999,0.80364,2426.5,2426.3,3.21]
[1728062482193,1.4564,2426.9,2426.3,3.21]
[1728062482393,0.41212,2426.6,2426.5,3.21]
[1728062482621,0.41211,2426.7,2426.5,3.62213]
[1728062482790,0.41211,2426.7,2426.6,0.4185]
[1728062483189,0.81009,2426.8,2426.6,0.4185]
[1728062483496,0.81009,2426.8,2426.7,3.6221]
[1728062483497,0.398,2426.8,2426.7,3.6221]
[1728062483688,3.2078,2427.2,2426.7,3.21]
[1728062483883,3.2078,2427.2,2426.8,0.8096]
[1728062483884,0.398,2427.1,2426.8,0.8096]
[1728062484085,0.41206,2427.0,2426.8,0.8096]
[1728062484390,0.41206,2426.9,2426.8,1.22167]
[1728062484594,0.41206,2427.0,2426.8,1.22167]
[1728062484795,1.42809,2427.1,2426.8,0.8096]
[1728062484991,0.41206,2426.9,2426.8,0.8096]
[1728062485191,0.41205,2427.0,2426.9,0.41206]
[1728062485385,0.398,2427.1,2426.8,0.8096]
[1728062485586,0.41206,2426.9,2426.8,1.22167]
[1728062485787,0.41206,2426.9,2426.8,0.8096]
[1728062486283,1.4281,2427.1,2426.7,3.21]
[1728062486284,0.398,2427.1,2426.7,3.21]
[1728062486483,0.41208,2426.8,2426.6,0.83061]
[1728062486688,0.8295,2426.7,2426.6,0.4185]
[1728062486987,0.8295,2426.7,2426.6,0.83061]
[1728062487189,0.8295,2426.7,2426.6,0.4185]
[1728062488689,1.03017,2426.9,2426.6,0.4185]
[1728062488891,0.83139,2426.8,2426.6,0.83061]
[1728062489289,1.03012,2427.1,2426.6,7.2201]
[1728062489489,0.41207,2426.9,2426.7,0.4121]
[1728062489697,0.41207,2426.9,2426.8,0.4129]
[1728062490693,4.1208,2426.9,2426.6,0.4185]
[1728062490894,0.4121,2426.7,2426.6,0.4185]
[1728062492999,1.03021,2426.8,2426.3,6.82995]
[1728062493195,0.41215,2426.5,2426.4,0.4162]
[1728062493397,0.41215,2426.5,2426.4,0.82833]
[1728062493398,0.41213,2426.5,2426.4,0.82833]
[1728062493601,0.419,2426.6,2426.4,0.4162]
[1728062493793,0.41213,2426.5,2426.4,0.4162]
[1728062493989,0.419,2426.6,2426.4,0.4162]
[1728062494299,0.83113,2426.6,2426.4,0.82834]
[1728062494596,0.41213,2426.5,2426.4,0.82835]
[1728062495107,0.419,2426.6,2426.4,0.4162]
[1728062495293,0.41213,2426.5,2426.4,0.82834]
[1728062495492,0.41213,2426.5,2426.4,0.4162]
[1728062496300,0.41213,2426.5,2426.4,0.82835]
[1728062496494,0.41213,2426.5,2426.4,0.4162]
[1728062496693,0.41213,2426.5,2426.4,0.82835]
[1728062497092,0.419,2426.6,2426.4,0.4162]
[1728062497291,0.41212,2426.6,2426.4,4.03834]
[1728062497497,0.41212,2426.6,2426.5,0.41213]
[1728062497688,1.41432,2426.8,2426.5,0.41213]
[1728062497888,0.41211,2426.7,2426.6,0.41211]
[1728062498098,0.41211,2426.7,2426.5,0.41213]
[1728062498395,0.41211,2426.6,2426.5,0.41213]
[1728062498797,0.41211,2426.7,2426.5,0.41213]
[1728062499101,0.41213,2426.5,2426.4,4.03834]
[1728062499490,0.41213,2426.5,2426.4,0.4162]
[1728062500301,1.03025,2426.7,2426.4,0.82835]
[1728062500500,1.03025,2426.7,2426.4,0.82834]
[1728062500803,0.41212,2426.6,2426.5,0.41213]
[1728062501101,0.41212,2426.6,2426.4,0.82834]
[1728062501502,0.4121,2426.7,2426.6,0.41211]
[1728062501802,0.4121,2426.7,2426.4,0.4162]
[1728062501803,0.41211,2426.7,2426.5,0.41212]
[1728062502192,0.41212,2426.6,2426.4,0.4162]
[1728062502504,0.41212,2426.6,2426.5,0.41213]
[1728062502694,1.03028,2426.7,2426.4,0.82834]
[1728062502998,0.41213,2426.6,2426.5,0.41213]
[1728062503298,0.41212,2426.6,2426.4,0.4162]
[1728062503595,1.41431,2426.8,2426.4,0.4162]
[1728062503795,0.41213,2426.5,2426.4,0.4162]
[1728062504688,1.43976,2426.7,2426.3,3.2078]
[1728062504689,0.41215,2426.4,2426.3,3.2078]
[1728062504893,0.81975,2426.4,2426.3,3.2078]
[1728062508606,0.81975,2426.4,2426.3,3.61997]
[1728062508810,0.81975,2426.4,2426.3,3.2078]
[1728062509397,0.81975,2426.4,2426.3,3.61997]
[1728062509595,0.81975,2426.4,2426.3,3.2078]
[1728062510506,0.81975,2426.4,2426.3,3.61997]
[1728062511011,6.4178,2426.9,2426.3,3.2078]
[1728062511201,0.41213,2426.5,2426.4,0.4146]
[1728062513704,0.41213,2426.5,2426.4,0.82675]
[1728062514400,0.81932,2426.6,2426.5,0.41213]
[1728062514803,0.4072,2426.6,2426.5,0.41213]
[1728062515107,0.81931,2426.6,2426.5,0.41213]
[1728062516206,0.41211,2426.6,2426.5,0.41213]
[1728062518513,1.03025,2426.7,2426.4,0.4146]
[1728062518816,0.41213,2426.6,2426.5,0.41213]
[1728062520619,0.41213,2426.5,2426.4,0.82674]
[1728062520813,0.41213,2426.6,2426.5,0.41213]
[1728062521115,0.41213,2426.5,2426.4,0.4146]
[1728062521610,0.41213,2426.5,2426.4,4.5362]
[1728062522214,0.41212,2426.6,2426.4,4.94834]
[1728062522409,2.53576336,2426.8,2426.5,1.48]
[1728062522615,0.41211,2426.7,2426.6,0.84741]
[1728062522811,2.94785336,2426.8,2426.6,0.84741]
[1728062523221,0.4121,2426.7,2426.6,0.84741]
[1728062524118,0.4121,2426.7,2426.6,0.4353]
[1728062525122,2.55006336,2426.7,2426.6,0.4353]
[1728062525620,0.4121,2426.7,2426.6,0.4353]
[1728062526115,2.13796336,2426.7,2426.6,0.4353]
[1728062526313,2.55003336,2426.9,2426.6,9.7867633]
[1728062526510,2.55003336,2426.9,2426.8,1.89208]
[1728062526911,2.55003336,2426.9,2426.8,2.30918]
[1728062527319,1.03016,2427.0,2426.8,2.30918]
[1728062527320,1.89471336,2427.0,2426.9,0.41206]
[1728062527521,0.41206,2426.9,2426.8,0.4171]
[1728062527914,0.4121,2426.7,2426.6,3.6431]
[1728062528116,0.4121,2426.7,2426.6,4.18594173]
[1728062528313,0.4121,2426.7,2426.6,4.59805173]
[1728062529217,0.3954,2426.8,2426.6,4.59805173]
[1728062529412,0.4121,2426.7,2426.6,4.05521]
[1728062529616,0.3954,2426.8,2426.6,4.59805348]
[1728062529915,0.80749,2426.8,2426.6,4.05521]
[1728062530218,0.3954,2426.8,2426.7,0.4121]
[1728062530611,0.41206,2427.0,2426.8,0.41207]
[1728062530813,0.80746,2427.0,2426.8,0.41207]
[1728062531221,0.3954,2427.0,2426.9,0.41206]
[1728062531419,0.3954,2427.0,2426.8,0.4121]
[1728062531719,0.3954,2427.0,2426.9,4.03096]
[1728062533114,0.80745,2427.0,2426.9,3.6189]
[1728062533516,0.80745,2427.0,2426.9,0.3989]
[1728062533829,0.3954,2427.0,2426.9,0.81096]
[1728062534125,4.09491448,2427.4,2427.1,0.41202]
[1728062534126,0.41199,2427.4,2427.1,0.41202]
[1728062534417,0.41201,2427.3,2427.0,3.63203]
[1728062534611,0.41202,2427.2,2427.1,0.4241]
[1728062534809,0.41201,2427.3,2427.1,1.26703]
[1728062535013,0.41201,2427.2,2427.1,0.855]
[1728062535315,0.3963,2427.4,2427.1,0.855]
[1728062536022,0.41201,2427.2,2427.1,0.855]
[1728062536220,0.41201,2427.3,2427.1,0.855]
[1728062536617,0.3963,2427.4,2427.1,0.855]
[1728062536818,0.412,2427.3,2427.1,0.855]
[1728062537017,0.3963,2427.4,2427.1,1.26702]
[1728062537018,0.80829,2427.4,2427.1,1.26702]
[1728062537223,0.412,2427.3,2427.1,1.26702]
[1728062537615,0.412,2427.3,2427.1,0.855]
[1728062538220,3.05625448,2427.4,2427.1,0.855]
[1728062538526,0.41201,2427.2,2427.1,0.855]
[1728062538728,0.41201,2427.2,2427.1,0.4241]
[1728062538923,0.41201,2427.3,2427.1,4.5441]
[1728062539116,0.41201,2427.3,2427.1,0.4241]
[1728062540129,0.41201,2427.3,2427.1,0.83613]
[1728062545829,0.3963,2427.4,2427.0,3.22]
[1728062546125,1.45144,2427.2,2426.9,3.2078]
[1728062546332,0.81393,2427.1,2427.0,0.41204]
[1728062546630,1.21583,2427.1,2427.0,0.41204]
[1728062547228,1.21583,2427.1,2426.9,3.61985]
[1728062547633,1.21583,2427.1,2427.0,1.48]
[1728062547818,0.8038,2427.1,2427.0,1.89205]
[1728062548225,1.21583,2427.1,2427.0,1.48]
[1728062548427,0.8038,2427.1,2427.0,1.89205]
[1728062553122,0.4054,2427.4,2427.0,5.6]
[1728062553325,0.41201,2427.2,2427.1,0.7746]
[1728062553529,0.80321,2427.3,2427.1,2.66661]
[1728062553924,1.19581,2427.3,2427.1,2.27661]
[1728062554124,1.19581,2427.3,2427.2,0.41201]
[1728062554325,1.19581,2427.3,2427.2,0.3958]
[1728062554626,0.7838,2427.3,2427.1,2.27662]
[1728062554823,0.41201,2427.2,2427.1,2.27662]
[1728062555020,0.41201,2427.2,2427.1,1.8646]
[1728062555221,0.41201,2427.2,2427.1,2.27663]
[1728062555626,0.41201,2427.2,2427.1,1.8646]
[1728062555933,0.41201,2427.2,2427.1,0.3846]
[1728062556132,0.41201,2427.2,2427.1,0.79663]
[1728062561031,1.19581,2427.3,2427.1,0.79663]
[1728062561226,0.7838,2427.3,2427.1,0.79663]
[1728062561426,0.41201,2427.2,2427.1,0.79663]
[1728062561628,1.19581,2427.3,2427.1,0.79663]
[1728062562332,0.7838,2427.3,2427.1,0.79663]
[1728062562539,0.41201,2427.2,2427.1,0.79663]
[1728062564333,1.19581,2427.3,2427.1,0.79663]
[1728062564736,1.19581,2427.3,2427.2,3.22]
[1728062567335,0.41201,2427.2,2427.1,0.3846]
[1728062567533,0.41201,2427.2,2427.1,0.92662901]
[1728062567939,0.41201,2427.2,2427.1,0.79663]
[1728062568332,0.41201,2427.2,2427.1,0.3846]
[1728062568640,0.41201,2427.2,2427.1,0.79663]
[1728062568839,0.41201,2427.2,2427.1,0.3846]
[1728062571032,0.41201,2427.2,2427.1,0.92696039]
[1728062571347,0.41201,2427.2,2427.1,1.33899039]
[1728062571839,0.41201,2427.2,2427.1,0.92696039]
[1728062574139,2.54548364,2427.2,2427.1,0.92696039]
[1728062575141,6.66548364,2427.2,2427.1,0.54236039]
[1728062575334,4.53201,2427.2,2427.1,0.54236039]
[1728062575538,7.19196448,2427.2,2427.1,0.54236039]
[1728062575832,4.53201,2427.2,2427.1,0.54236039]
[1728062576141,7.19196448,2427.2,2427.1,0.54236039]
[1728062576439,4.53201,2427.2,2427.1,0.54236039]
[1728062576639,7.19196448,2427.2,2427.1,0.54236039]
[1728062576940,4.53201,2427.2,2427.1,0.54236039]
[1728062579842,4.53201,2427.2,2427.1,0.54308775]
[1728062580942,7.19196448,2427.2,2427.1,0.54308775]
[1728062582041,6.67349628,2427.2,2427.1,0.54308775]
[1728062582634,6.67349628,2427.2,2427.1,0.95511775]
[1728062582837,6.67349628,2427.2,2427.1,0.54308775]
[1728062583543,6.67349628,2427.2,2427.1,0.95511775]
[1728062583944,6.67349628,2427.2,2427.1,0.54308775]
[1728062584545,4.53201,2427.2,2427.1,1.41203127]
[1728062584749,4.53201,2427.2,2427.1,2.90335655]
[1728062584946,4.53201,2427.2,2427.1,1.07929528]
[1728062585139,4.53201,2427.2,2427.1,2.49132842]
[1728062585541,4.53201,2427.2,2427.1,2.49129049]
[1728062585747,4.53201,2427.2,2427.1,2.90332049]
[1728062586248,4.53201,2427.2,2427.1,1.62237036]
[1728062586439,4.53201,2427.2,2427.1,2.49133208]
[1728062586641,12.01201,2427.2,2427.1,1.62017208]
[1728062586842,12.59173532,2427.2,2426.5,1.69273192]
[1728062587038,0.41211,2426.6,2426.5,1.59673192]
[1728062587247,0.41211,2426.6,2426.5,3.84359148]
[1728062587443,5.74541,2426.6,2426.5,0.86901009]
[1728062587638,5.74541,2426.6,2426.5,2.24625617]
[1728062587852,5.74541,2426.6,2426.5,0.86901009]
[1728062588356,5.74541,2426.6,2426.5,0.86220391]
[1728062588864,5.74541,2426.6,2426.4,2.00888192]
[1728062588865,0.41213,2426.5,2426.4,2.00888192]
[1728062589045,0.41213,2426.5,2426.4,3.38566855]
[1728062589245,4.53373,2426.5,2426.4,4.24765406]
[1728062589443,4.53373,2426.5,2426.4,2.65092214]
[1728062589941,0.41213,2426.5,2426.4,2.65092214]
[1728062590140,0.41213,2426.5,2426.4,3.83550406]
[1728062590341,0.41213,2426.5,2426.4,5.31550406]
[1728062590554,0.41213,2426.5,2426.4,3.71877214]
[1728062590748,0.41213,2426.5,2426.4,4.13092214]
[1728062591051,1.23963,2426.6,2426.5,0.41213]
[1728062591251,1.23963,2426.6,2426.5,1.27411551]
[1728062591558,0.8275,2426.6,2426.4,1.48]
[1728062591746,1.23961,2426.6,2426.5,0.86159709]
[1728062593652,0.83531,2426.6,2426.5,0.86159709]
[1728062593853,1.03025,2426.7,2426.6,0.4121]
[1728062593854,0.41211,2426.7,2426.6,0.4121]
[1728062594046,1.4381,2426.9,2426.7,0.41209]
[1728062594047,0.41209,2426.8,2426.7,0.41209]
[1728062594745,1.8421,2426.9,2426.6,2.3115]
[1728062594946,0.4121,2426.7,2426.6,2.72361]
[1728062598461,0.4121,2426.7,2426.6,2.3115]
[1728062598857,0.4121,2426.7,2426.6,2.84978609]
[1728062599251,0.4121,2426.7,2426.6,3.26189609]
[1728062599650,0.4121,2426.7,2426.6,2.84978609]
[1728062599857,0.4121,2426.7,2426.6,3.26189609]
[1728062600052,0.8119,2426.9,2426.6,2.84978609]
[1728062600258,0.81606,2426.9,2426.8,1.48]
[1728062601356,0.81606,2426.9,2426.8,1.8765]
[1728062601557,2.14327993,2427.1,2426.8,1.8765]
[1728062601759,0.41205,2427.1,2427.0,0.41203]
[1728062601964,0.41205,2427.0,2426.9,1.89206]
[1728062602264,0.41205,2427.0,2426.9,2.43022611]
[1728062602955,1.03008,2427.2,2426.9,2.43022611]
[1728062602956,1.03008,2427.2,2426.9,2.01816611]
[1728062603159,0.41204,2427.1,2427.0,0.41204]
[1728062603350,0.41202,2427.2,2427.1,0.41201]
[1728062603560,0.41201,2427.3,2427.2,0.412]
[1728062603758,0.41201,2427.2,2427.1,1.89202]
[1728062604959,0.41201,2427.2,2427.1,1.48]
[1728062605563,0.41203,2427.1,2427.0,4.6878]
[1728062605765,0.80053,2427.1,2427.0,1.48]
[1728062606657,0.80053,2427.1,2426.7,1.74331743]
[1728062606658,0.41208,2426.8,2426.7,2.00881192]
[1728062606861,1.03013,2427.0,2426.7,2.00881192]
[1728062606862,0.41208,2426.9,2426.7,2.87909263]
[1728062607166,0.41206,2426.9,2426.8,0.53811255]
[1728062607764,0.41206,2426.9,2426.8,0.95019255]
[1728062607964,0.3885,2427.1,2426.8,0.95019255]
[1728062608165,0.80053,2427.1,2427.0,1.48]
[1728062610471,0.80053,2427.1,2427.0,2.0181282]
[1728062610767,0.41203,2427.1,2427.0,2.0181282]
[1728062612569,0.41203,2427.1,2427.0,2.4301782]
[1728062612970,3.17333993,2427.2,2427.0,2.4301782]
[1728062612971,2.55529993,2427.2,2427.1,0.41203]
[1728062613269,0.41203,2427.1,2427.0,0.41204]
[1728062613464,0.41203,2427.2,2427.0,2.4301863]
[1728062613666,0.41203,2427.1,2427.0,1.89204]
[1728062613966,0.41203,2427.1,2427.0,2.43018602]
[1728062614170,3.59937993,2427.3,2427.0,2.43018602]
[1728062614370,0.41203,2427.2,2427.0,1.89204]
[1728062614569,2.14327993,2427.2,2427.0,1.89204]
[1728062614768,2.55530993,2427.1,2427.0,1.89204]
[1728062614972,2.14327993,2427.1,2427.0,2.43017881]
[1728062615265,2.14028844,2427.1,2427.0,2.43017881]
[1728062615471,3.09112992,2427.2,2427.1,0.41203]
[1728062615868,3.09112992,2427.2,2427.0,1.89203]
[1728062616570,2.67909992,2427.1,2427.0,1.89203]
[1728062616772,2.67909992,2427.1,2427.0,2.43017032]
[1728062617170,2.14073717,2427.1,2427.0,6.55019032]
[1728062617365,2.14073717,2427.1,2427.0,6.99913329]
[1728062617566,2.55276717,2427.1,2427.0,2.82369032]
[1728062618276,2.55276717,2427.1,2427.0,2.82367552]
[1728062618471,2.55276717,2427.1,2427.0,2.41162552]
[1728062618670,2.55276717,2427.1,2427.0,2.01811955]
[1728062619174,0.41203,2427.1,2427.0,2.01811955]
[1728062620482,2.55276717,2427.1,2427.0,2.01811955]
[1728062620780,0.41203,2427.1,2427.0,2.01811955]
[1728062621080,0.41203,2427.1,2427.0,2.43016955]
[1728062621277,2.14073717,2427.2,2426.9,0.3924]
[1728062621476,2.14073717,2427.2,2426.8,1.8735]
[1728062621477,0.41206,2426.9,2426.8,1.89208]
[1728062621674,0.41206,2426.9,2426.8,2.43022864]
[1728062621874,0.83135,2427.0,2426.8,2.43022864]
[1728062622075,0.83135,2427.0,2426.9,0.4096]
[1728062622275,0.83135,2427.0,2426.9,0.82166]
[1728062622574,3.56584717,2427.1,2427.0,0.41205]
[1728062622575,2.14073717,2427.1,2427.0,0.41205]
[1728062622878,2.14073717,2427.1,2427.0,1.89205]
[1728062623781,2.55276717,2427.1,2427.0,1.89205]
[1728062623981,2.14073717,2427.1,2427.0,1.89205]
[1728062624175,2.55276717,2427.1,2427.0,1.48]
[1728062624988,2.14073717,2427.1,2426.8,1.48]
[1728062625182,0.41206,2426.9,2426.8,1.48]
[1728062625482,0.41206,2426.9,2426.8,0.53814865]
[1728062625670,0.79896,2426.9,2426.8,0.53814865]
[1728062627482,10.91976,2426.9,2426.8,0.53814865]
[1728062627680,10.91976,2426.9,2426.6,3.2078]
[1728062627681,0.4121,2426.7,2426.6,3.2078]
[1728062627982,0.4121,2426.7,2426.6,4.60707159]
[1728062628180,0.807,2426.7,2426.6,4.60707159]
[1728062628387,0.807,2426.7,2426.6,4.60703402]
[1728062629474,0.807,2426.7,2426.6,3.74596693]
[1728062629880,0.807,2426.7,2426.6,3.2078]
[1728062632491,4.9278,2426.7,2426.6,3.2078]
[1728062633082,4.9278,2426.7,2426.6,4.58478508]
[1728062633482,4.9278,2426.7,2426.6,3.2078]
[1728062633687,4.9278,2426.7,2426.6,4.58473602]
[1728062633891,4.9278,2426.7,2426.6,6.18146794]
[1728062634093,4.9278,2426.7,2426.6,2.97366794]
[1728062635295,4.9278,2426.7,2426.6,1.37693602]
[1728062635484,4.9278,2426.7,2426.6,2.97366794]
[1728062636198,4.9278,2426.7,2426.5,3.48885192]
[1728062636199,0.41211,2426.6,2426.5,3.48885192]
[1728062636393,1.21971,2426.6,2426.5,4.86592011]
[1728062636891,1.21971,2426.6,2426.5,4.45380011]
[1728062637790,1.21971,2426.6,2426.5,2.97380011]
[1728062638090,1.21971,2426.6,2426.5,1.37706819]
[1728062638290,0.41213,2426.5,2426.4,3.48887192]
[1728062638590,0.41213,2426.5,2426.4,4.86601627]
[1728062638790,1.21973,2426.6,2426.5,0.41213]
[1728062639091,0.82793,2426.6,2426.5,3.26927435]
[1728062639893,0.82793,2426.6,2426.5,2.85714435]
[1728062640093,0.82793,2426.6,2426.5,4.89014973]